bitfinex/quotes_ETHUSD_20220310
["timestamp","ask_amount","ask_price","bid_price","bid_amount"]
[1646900297402,7.32,2585.6,2584.2,117.5]
[1646900297593,19.3716,2586.1,2584.8,0.01216246]
[1646900297594,2.8346,2586.1,2584.8,0.01216246]
[1646900297895,1.0,2585.5,2585.4,11.79960819]
[1646900298094,1.0,2585.5,2585.4,19.26332856]
[1646900298291,1.35850322,2586.1,2585.7,50.0]
[1646900298494,1.35850322,2586.1,2585.7,50.3]
[1646900298693,1.35850322,2586.1,2585.8,5.22778254]
[1646900298893,1.35850322,2586.1,2585.6,5.22778254]
[1646900299292,1.35850322,2586.1,2585.6,0.857]
[1646900299536,9.6276,2586.5,2585.6,0.857]
[1646900299740,9.6276,2586.5,2585.6,6.08478254]
[1646900299936,0.9678,2586.2,2585.6,6.08478254]
[1646900300341,0.96979099,2586.2,2585.7,7.7348]
[1646900300537,0.96979099,2586.2,2585.8,5.22778254]
[1646900300738,0.00199099,2586.2,2585.8,0.33226309]
[1646900300939,0.00199099,2586.2,2585.9,7.7343]
[1646900301140,1.93562,2586.5,2585.9,7.7343]
[1646900301544,7.32,2586.8,2585.9,7.7343]
[1646900301545,0.00199099,2586.1,2586.0,5.78478254]
[1646900301740,1.93528,2586.8,2586.3,50.99800901]
[1646900301943,1.93528,2586.8,2586.4,4.79144406]
[1646900302145,1.93528,2586.8,2586.3,0.3]
[1646900302346,1.93528,2586.8,2586.4,0.91101926]
[1646900302547,1.93511,2587.1,2586.5,4.79144406]
[1646900302948,1.93511,2587.1,2586.6,0.557]
[1646900303396,1.35850322,2587.2,2586.7,4.79144406]
[1646900303595,1.35850322,2587.2,2586.8,0.557]
[1646900303805,0.00213053,2587.0,2586.9,4.79144406]
[1646900303995,1.35850322,2587.2,2587.0,153.99786947]
[1646900304194,1.35850322,2587.2,2587.1,0.557]
[1646900304395,1.50028955,2587.6,2587.1,0.557]
[1646900304596,0.387,2587.6,2587.1,0.557]
[1646900304996,1.35434,2587.6,2587.1,0.557]
[1646900305500,0.05718394,2587.4,2586.2,4.79240406]
[1646900305698,0.05718394,2587.4,2586.6,0.557]
[1646900306100,0.04546443,2586.7,2586.6,0.557]
[1646900306500,0.10024381,2586.7,2586.6,0.557]
[1646900308645,0.0147448,2586.8,2586.7,71.89975619]
[1646900308849,0.0147448,2586.8,2586.7,21.0]
[1646900309045,0.96757,2586.9,2586.8,50.9852552]
[1646900309259,0.96757,2586.9,2586.7,21.0]
[1646900310649,0.96757,2586.9,2586.4,0.557]
[1646900310886,0.96757,2586.9,2586.4,0.857]
[1646900311189,0.19596719,2587.0,2586.7,50.94207685]
[1646900311391,0.19596719,2587.0,2586.5,83.0]
[1646900311987,0.154693,2587.0,2586.5,83.0]
[1646900312591,1.122213,2587.0,2586.5,83.0]
[1646900313390,1.122213,2587.0,2586.5,95.37562692]
[1646900313592,0.154693,2587.0,2586.5,96.34300032]
[1646900314294,0.154693,2587.0,2586.5,84.55300032]
[1646900314539,0.154693,2587.0,2586.4,0.857]
[1646900314745,0.154693,2587.0,2586.1,0.08568868]
[1646900314941,4.9940415,2587.0,2586.1,0.08568868]
[1646900315140,0.04912466,2586.9,2586.1,0.08568868]
[1646900315338,0.04912466,2586.9,2586.1,0.08472868]
[1646900315739,0.96767,2586.8,2586.2,0.88726954]
[1646900315943,0.04912466,2586.9,2586.3,12.43138201]
[1646900316143,0.154693,2587.0,2586.4,0.07510115]
[1646900316346,0.154693,2587.0,2586.5,0.557]
[1646900316547,0.03956853,2586.9,2586.6,12.43591984]
[1646900316747,0.154693,2587.0,2586.9,50.96043147]
[1646900316943,0.154693,2587.0,2586.7,12.43527726]
[1646900317145,0.00282557,2587.1,2587.0,50.845307]
[1646900317445,0.00565095,2587.1,2586.7,0.94527726]
[1646900317645,0.00282538,2587.1,2586.7,0.94527726]
[1646900318146,0.00282538,2587.1,2586.7,12.73527726]
[1646900318786,0.00566544,2587.1,2586.7,12.73527726]
[1646900319191,0.00566544,2587.1,2586.7,0.94527726]
[1646900319588,0.00852031,2587.1,2586.7,0.857]
[1646900319789,0.00569493,2587.1,2586.7,0.857]
[1646900319988,0.00569493,2587.1,2586.7,12.647]
[1646900319989,0.00285487,2587.1,2586.7,12.647]
[1646900320591,0.00570974,2587.1,2586.7,12.647]
[1646900320788,0.00285487,2587.1,2586.7,12.647]
[1646900320990,0.00285487,2587.1,2586.7,12.347]
[1646900321192,0.00285487,2587.1,2586.7,12.647]
[1646900321799,0.00570609,2587.1,2586.7,12.647]
[1646900322054,1.9987445,2587.4,2587.1,50.99714878]
[1646900322258,1.9987445,2587.4,2586.8,0.08631622]
[1646900322858,1.11024453,2587.0,2586.8,0.08631622]
[1646900323058,4.79144406,2587.3,2587.0,49.88975547]
[1646900323257,0.96737,2587.4,2586.8,0.08631622]
[1646900324463,1.13631088,2587.1,2586.8,0.08631622]
[1646900324762,1.13631088,2587.1,2586.7,0.3]
[1646900324960,1.13631088,2587.1,2586.6,0.07699721]
[1646900325360,1.13631088,2587.1,2586.3,0.7502]
[1646900325361,1.13631088,2587.1,2586.4,0.06980211]
[1646900326194,1.13631088,2587.1,2586.5,0.557]
[1646900326594,1.13631088,2587.1,2586.5,0.857]
[1646900327792,1.13631088,2587.1,2586.6,11.79]
[1646900327994,0.05030736,2587.2,2586.6,12.347]
[1646900328591,0.04697394,2587.2,2586.6,12.347]
[1646900328994,7.32,2587.5,2586.6,12.347]
[1646900328995,7.36455123,2587.5,2587.2,50.99666649]
[1646900329192,7.36455123,2587.5,2587.0,11.8707327]
[1646900329193,7.32,2587.5,2587.0,11.8707327]
[1646900329391,7.32,2587.5,2587.0,12.4277327]
[1646900329640,7.32,2587.5,2587.1,7.7307]
[1646900329841,0.387,2587.6,2587.1,7.7307]
[1646900330237,5.16562138,2587.6,2587.1,7.7307]
[1646900330637,6.16722636,2587.6,2587.1,7.7307]
[1646900330840,6.13298138,2587.6,2587.1,7.7307]
[1646900331237,0.00322109,2587.5,2587.1,7.7307]
[1646900332041,1.93496,2587.4,2587.1,7.7307]
[1646900332245,1.07997549,2587.3,2587.1,7.7307]
[1646900332441,1.13005476,2587.3,2587.1,7.7307]
[1646900333296,2.09752476,2587.3,2587.1,7.7307]
[1646900333689,2.09982917,2587.3,2587.1,7.7307]
[1646900334292,4.77862138,2587.2,2587.1,7.7307]
[1646900334492,2.09982917,2587.3,2587.1,7.7307]
[1646900334691,2.09752476,2587.3,2587.1,7.7307]
[1646900334894,2.10086227,2587.3,2587.1,7.7307]
[1646900335893,2.09752476,2587.3,2587.1,7.7307]
[1646900336094,2.10086227,2587.3,2587.1,7.7307]
[1646900337145,2.09752476,2587.3,2587.1,7.7307]
[1646900337344,2.10086227,2587.3,2587.1,7.7307]
[1646900338347,2.09752476,2587.3,2587.1,7.7307]
[1646900338549,2.10086227,2587.3,2587.1,7.7307]
[1646900339348,1.02088678,2587.3,2587.1,7.7307]
[1646900339549,1.01754927,2587.3,2587.1,7.7307]
[1646900339752,0.96747,2587.3,2587.1,8.0307]
[1646900339950,0.00289409,2587.3,2587.1,8.0307]
[1646900340253,1.40107642,2587.6,2587.3,50.99710591]
[1646900340447,0.87536297,2587.5,2587.1,8.0307]
[1646900342293,0.87536297,2587.5,2587.1,7.7307]
[1646900342495,1.935,2587.4,2587.1,7.7307]
[1646900342696,0.05222402,2587.3,2587.1,7.7307]
[1646900343795,0.96749,2587.3,2587.1,7.7307]
[1646900343995,0.387,2587.6,2587.1,7.7307]
[1646900344645,0.00230223,2587.4,2587.1,7.7307]
[1646900345245,1.93713223,2587.4,2587.1,7.7307]
[1646900345448,1.93483,2587.4,2587.1,7.7307]
[1646900345846,0.04934589,2587.3,2587.1,7.7307]
[1646900349189,5.79555727,2587.3,2587.1,3.13048636]
[1646900349390,5.79555727,2587.3,2586.3,0.00271094]
[1646900349391,39.46775,2587.1,2586.3,0.00271094]
[1646900349595,4.85226195,2587.0,2586.3,0.00271094]
[1646900349791,4.2906811,2586.9,2586.3,0.00271094]
[1646900349989,1.26383212,2586.7,2586.0,0.01084475]
[1646900350195,0.04677671,2586.5,2586.0,0.01084475]
[1646900350392,0.96804,2586.3,2586.0,0.01084475]
[1646900350593,0.05092994,2586.2,2586.0,0.01084475]
[1646900350791,0.05092994,2586.2,2584.9,13.014]
[1646900350792,38.5,2586.1,2584.3,8.0541075]
[1646900350992,4.80067522,2586.0,2585.2,0.00096]
[1646900351191,4.80067522,2586.0,2584.7,13.39397337]
[1646900351192,0.05706347,2585.9,2584.7,11.79096]
[1646900351389,0.05706347,2585.9,2584.7,12.34796]
[1646900351589,1.02521347,2585.9,2584.7,12.34796]
[1646900351788,0.05272481,2585.4,2584.7,13.38597717]
[1646900352036,0.05272481,2585.4,2584.7,13.38501717]
[1646900352643,0.05162867,2585.7,2584.7,13.38501717]
[1646900353044,0.05472914,2585.5,2584.7,13.38501717]
[1646900353250,0.05472914,2585.5,2584.7,14.68501717]
[1646900353445,0.05472914,2585.5,2585.1,0.0030094]
[1646900354153,0.05472914,2585.5,2584.7,15.08335656]
[1646900354346,0.05472914,2585.5,2584.9,12.1763]
[1646900354545,0.06261821,2585.8,2585.2,0.00300936]
[1646900355446,0.06261821,2585.8,2585.1,11.79]
[1646900355646,0.06261821,2585.8,2585.2,12.8174081]
[1646900355890,0.06261821,2585.8,2585.4,0.00300928]
[1646900356490,0.0525726,2586.0,2585.4,0.00300928]
[1646900356696,0.0525726,2586.0,2585.2,13.1174081]
[1646900356991,1.1451435,2586.0,2585.5,0.00302288]
[1646900357191,0.05381347,2585.9,2585.5,0.00302288]
[1646900357794,0.05381347,2585.9,2585.2,13.6753681]
[1646900357992,0.05381347,2585.9,2585.2,12.647]
[1646900358196,0.968,2585.9,2585.6,0.00292354]
[1646900358401,0.06413361,2585.8,2585.6,0.00292354]
[1646900359195,2.08403704,2585.6,2585.2,0.31169592]
[1646900359397,0.05855375,2585.5,2585.2,0.31169592]
[1646900359641,0.1923,2585.4,2585.2,0.01169592]
[1646900360244,0.1923,2585.4,2584.8,1.51718381]
[1646900360443,0.1923,2585.4,2584.8,1.81622381]
[1646900360647,0.1923,2585.4,2585.2,0.00292368]
[1646900361245,0.05855375,2585.5,2585.2,0.00292368]
[1646900361246,0.25075375,2585.5,2585.2,0.00292368]
[1646900361448,0.25075375,2585.5,2584.8,1.25922381]
[1646900361845,0.25075375,2585.5,2585.2,0.00274375]
[1646900362648,0.25075375,2585.5,2584.8,6.02872905]
[1646900362848,0.05855375,2585.5,2584.8,1.25922381]
[1646900363149,0.05855375,2585.5,2585.2,0.0027437]
[1646900363993,0.05855375,2585.5,2584.8,1.25922381]
[1646900364296,0.05855375,2585.5,2585.2,0.0027437]
[1646900364494,0.05855375,2585.5,2584.8,1.22294394]
[1646900364897,0.05855375,2585.5,2585.2,0.98659046]
[1646900365096,0.1918,2585.7,2585.5,51.0]
[1646900365296,2.4235,2586.2,2585.2,0.98659046]
[1646900365297,0.06630935,2586.0,2585.2,1.54359046]
[1646900365495,6.26781614,2586.1,2585.2,1.62286237]
[1646900365698,2.4235,2586.2,2585.4,12.1763]
[1646900365900,2.615,2586.2,2585.7,0.08595906]
[1646900366101,2.615,2586.2,2585.7,0.64295906]
[1646900366295,0.1915,2586.2,2585.7,0.64295906]
[1646900366495,2.12741,2586.2,2585.7,0.557]
[1646900366896,2.12741,2586.2,2585.3,0.00096]
[1646900366897,0.05390132,2586.1,2585.3,0.00096]
[1646900367144,0.05390132,2586.1,2585.2,0.9466237]
[1646900367145,0.1927,2586.0,2585.2,0.9466237]
[1646900367344,1.21491957,2586.0,2585.2,1.92197241]
[1646900368045,1.21491957,2586.0,2585.2,0.9466237]
[1646900368843,1.21491957,2586.0,2585.3,0.9612477]
[1646900369045,1.21491957,2586.0,2585.3,1.05036947]
[1646900369444,0.1927,2586.0,2585.3,1.05036947]
[1646900369648,0.05390132,2586.1,2585.3,1.05036947]
[1646900369846,0.05390132,2586.1,2585.3,5.81987471]
[1646900370046,0.05390132,2586.1,2585.3,1.05036947]
[1646900370447,0.05390132,2586.1,2585.6,0.92947258]
[1646900370803,0.05390132,2586.1,2585.6,1.22947258]
[1646900371198,0.00333455,2586.2,2585.6,1.22947258]
[1646900371396,3.15922,2586.3,2585.6,1.22947258]
[1646900371593,0.00333468,2586.2,2585.6,0.3]
[1646900371794,0.00333468,2586.2,2585.4,0.07631454]
[1646900372496,1.1913,2586.3,2585.4,0.07631454]
[1646900372696,0.00231428,2586.2,2585.6,1.42545144]
[1646900373497,0.00231428,2586.2,2585.6,13.21545144]
[1646900373701,1.1913,2586.3,2585.7,0.07415797]
[1646900373902,1.1913,2586.3,2586.0,1.02358074]
[1646900374101,9.71107,2586.6,2586.2,154.49677138]
[1646900374102,2.9486,2586.6,2586.2,154.49677138]
[1646900374299,0.04324,2586.9,2586.3,4.76950524]
[1646900374542,0.05615082,2587.0,2586.3,4.76950524]
[1646900374744,0.01291082,2587.0,2586.2,103.8]
[1646900374943,0.01291082,2587.0,2586.6,1.1988901]
[1646900375343,0.05370029,2587.1,2586.6,1.4988901]
[1646900376744,7.32,2587.2,2586.6,1.4988901]
[1646900377245,7.32,2587.2,2586.6,2.4664168]
[1646900377647,0.00334168,2587.0,2586.6,1.2675267]
[1646900377848,0.00334168,2587.0,2586.6,0.3]
[1646900378307,0.00334168,2587.0,2586.5,4.76950524]
[1646900378498,7.32,2587.2,2586.5,5.73702694]
[1646900378905,0.00334172,2586.9,2586.5,6.29402694]
[1646900379201,7.32,2587.2,2586.6,115.0]
[1646900379401,7.32,2587.2,2586.8,1.07645881]
[1646900379702,7.32,2587.2,2586.8,0.3]
[1646900380200,7.32,2587.2,2586.5,0.38861715]
[1646900380401,7.32,2587.2,2586.4,0.3]
[1646900380701,1.23086281,2586.9,2586.3,0.857]
[1646900381203,1.23086281,2586.9,2586.2,0.22179625]
[1646900381802,0.04714159,2586.8,2586.2,0.1499]
[1646900385055,0.00334132,2587.0,2586.2,0.1499]
[1646900385255,0.00334132,2587.0,2586.3,0.9675663]
[1646900385804,0.04321771,2587.1,2586.3,1.2675663]
[1646900385996,0.04321771,2587.1,2586.4,0.08390477]
[1646900386198,0.00334145,2587.0,2586.5,0.3]
[1646900386397,0.00334145,2587.0,2586.6,0.9674167]
[1646900386799,0.00334145,2587.0,2586.8,0.99934736]
[1646900387001,0.04321771,2587.1,2586.8,0.99934736]
[1646900387200,7.32,2587.2,2586.8,0.3]
[1646900387404,0.00323132,2587.0,2586.8,0.3]
[1646900387601,0.00323132,2587.0,2586.6,1.2674167]
[1646900388201,7.32,2587.2,2586.7,1.0960437]
[1646900388602,0.00323132,2587.0,2586.7,5.86554894]
[1646900388803,0.00323132,2587.0,2586.7,1.0960437]
[1646900389203,0.00323132,2587.0,2586.7,0.09021037]
[1646900389405,7.32,2587.2,2586.7,0.09021037]
[1646900389846,0.00323137,2587.0,2586.7,0.09021037]
[1646900390248,7.32,2587.2,2587.0,51.29676863]
[1646900390449,7.32,2587.2,2587.0,0.3]
[1646900390847,7.32,2587.2,2586.8,35.76016305]
[1646900391452,2.55617,2587.6,2587.2,43.68]
[1646900391651,2.55617,2587.6,2587.3,0.93808145]
[1646900391850,1.35447,2587.6,2587.3,1.23808145]
[1646900392053,1.35447,2587.6,2587.3,0.3]
[1646900392457,1.35447,2587.6,2587.0,0.3]
[1646900392854,0.96759,2587.2,2586.5,0.09049908]
[1646900393317,0.99802376,2587.0,2586.5,0.09049908]
[1646900393707,0.99802376,2587.0,2586.5,0.3]
[1646900393909,0.96759,2587.2,2586.5,0.3]
[1646900394107,0.96759,2587.2,2586.5,0.38482703]
[1646900394711,0.00334536,2587.1,2586.5,0.3]
[1646900395108,0.00334536,2587.1,2586.4,0.07562838]
[1646900395109,0.89633182,2587.1,2586.4,0.07562838]
[1646900395714,0.96766,2587.0,2586.4,4.89270962]
[1646900395908,0.96766,2587.0,2586.4,0.07562838]
[1646900396110,0.96766,2587.0,2586.4,4.89270962]
[1646900396309,0.96766,2587.0,2586.5,7.80076489]
[1646900396709,0.96766,2587.0,2586.5,8.10076489]
[1646900398654,0.00334527,2587.1,2586.5,19.89076489]
[1646900399055,0.00334527,2587.1,2586.6,0.08583834]
[1646900399254,7.32,2587.3,2586.7,19.5219]
[1646900399454,0.00324495,2587.1,2586.7,19.5219]
[1646900399656,0.00324495,2587.1,2586.7,8.0319]
[1646900400260,0.00324495,2587.1,2586.7,7.7319]
[1646900400459,0.0927892,2587.2,2586.7,7.7319]
[1646900400909,0.00324504,2587.1,2586.7,7.7319]
[1646900401506,0.0927892,2587.2,2586.7,7.7319]
[1646900401507,0.0927892,2587.2,2586.7,8.0319]
[1646900401906,0.00324504,2587.1,2586.7,8.0319]
[1646900402705,1.0175892,2587.2,2586.7,8.0319]
[1646900403106,0.00313583,2587.1,2586.7,8.0319]
[1646900403507,1.22771687,2587.1,2586.7,8.0319]
[1646900403708,0.00313583,2587.1,2586.7,8.0319]
[1646900403908,0.0499992,2587.2,2586.7,8.0319]
[1646900404306,0.00313583,2587.1,2586.7,8.0319]
[1646900404756,0.95555498,2587.1,2586.7,8.0319]
[1646900405156,0.95241915,2587.1,2586.7,8.0319]
[1646900405555,0.95555498,2587.1,2586.7,8.0319]
[1646900406353,0.95241915,2587.1,2586.7,8.0319]
[1646900406554,0.0499992,2587.2,2586.7,8.0319]
[1646900406856,0.00315805,2587.1,2586.7,8.11169143]
[1646900407255,0.00315805,2587.1,2586.7,8.0319]
[1646900407661,0.04572669,2587.2,2586.7,8.0319]
[1646900408061,0.00315805,2587.1,2586.7,8.0319]
[1646900408725,0.04572669,2587.2,2586.7,8.0319]
[1646900408726,0.93920927,2587.2,2586.7,8.0319]
[1646900409025,0.00315805,2587.1,2586.7,8.0319]
[1646900409927,0.93920927,2587.2,2586.7,8.0319]
[1646900410231,0.00315305,2587.1,2586.7,8.0319]
[1646900410627,0.00315305,2587.1,2586.7,8.10729358]
[1646900410928,0.00315305,2587.1,2586.8,11.79]
[1646900411129,7.32,2587.3,2586.9,16.68734774]
[1646900411326,7.32,2587.3,2587.0,0.08806023]
[1646900411526,0.00315305,2587.1,2587.0,0.08806023]
[1646900411828,7.32,2587.3,2587.1,188.49684695]
[1646900412082,7.32,2587.3,2587.2,4.81708124]
[1646900412282,0.01260974,2587.6,2587.3,99.5]
[1646900412482,0.04222597,2587.9,2587.3,99.5]
[1646900412682,0.04222597,2587.9,2587.3,99.8]
[1646900413284,0.04222597,2587.9,2587.3,100.7671487]
[1646900413486,0.04222597,2587.9,2587.3,99.8]
[1646900413887,0.00283586,2587.7,2587.3,99.8]
[1646900414088,0.00283586,2587.7,2587.3,111.59]
[1646900414692,1.1641,2588.0,2587.3,111.59]
[1646900414887,10.1213,2588.1,2587.5,11.79]
[1646900415087,10.1213,2588.1,2587.5,12.76767113]
[1646900415088,0.00283589,2587.6,2587.5,12.76767113]
[1646900415290,0.00283589,2587.6,2587.5,17.85801571]
[1646900415692,0.00283589,2587.6,2587.5,18.24431571]
[1646900415900,0.01134185,2588.0,2587.7,11.79]
[1646900416204,7.32,2588.1,2588.0,11.79]
[1646900416205,4.18951364,2588.1,2588.0,11.79]
[1646900416401,4.18951364,2588.1,2588.0,16.65513184]
[1646900416402,0.01134179,2588.1,2588.0,16.65513184]
[1646900416799,0.01134179,2588.1,2588.0,16.95513184]
[1646900416999,3.9736,2588.7,2588.2,12.7568079]
[1646900417202,3.9736,2588.7,2588.3,8.0271]
[1646900417402,9.1773,2588.9,2588.3,8.0271]
[1646900417601,1.03793427,2589.0,2588.3,8.0271]
[1646900417807,0.04048,2589.0,2588.3,9.06645263]
[1646900418601,0.04048,2589.0,2588.3,13.93854625]
[1646900419208,0.04048,2589.0,2588.5,0.9667264]
[1646900419650,0.04048,2589.0,2588.6,0.3]
[1646900420047,0.04048,2589.0,2588.6,16.96209362]
[1646900420249,1.35850322,2589.4,2588.8,11.79]
[1646900420447,1.35850322,2589.4,2589.0,11.79]
[1646900420850,0.05187844,2589.6,2589.0,12.09]
[1646900421150,16.9097,2589.7,2589.2,1.21499951]
[1646900421151,7.32,2589.7,2589.2,1.21499951]
[1646900421357,0.00336594,2589.3,2589.2,14.27189951]
[1646900421755,7.33346173,2589.7,2589.3,184.99663406]
[1646900421956,7.33346173,2589.7,2589.4,19.5138]
[1646900422158,1.0,2590.0,2589.4,24.38589362]
[1646900422453,0.00917544,2589.8,2589.4,19.8138]
[1646900422653,0.00917544,2589.8,2589.4,8.0238]
[1646900423056,0.97575544,2589.8,2589.4,8.0238]
[1646900423305,0.05208395,2589.7,2589.4,8.0238]
[1646900423901,0.93908941,2589.5,2589.4,8.0238]
[1646900424805,0.93908941,2589.5,2589.4,1.356]
[1646900425002,38.5,2589.4,2588.1,0.07995121]
[1646900425203,0.96692,2589.1,2588.2,7.7257]
[1646900425406,0.96692,2589.1,2588.2,7.79670775]
[1646900425808,0.96692,2589.1,2588.2,19.58670775]
[1646900426005,2.09971459,2589.1,2588.3,1.10661901]
[1646900426208,1.1494,2589.3,2588.4,0.07892755]
[1646900426704,8.4694,2589.3,2588.4,0.07892755]
[1646900426906,1.1494,2589.3,2588.4,11.86892755]
[1646900427154,8.4694,2589.3,2588.5,0.07734062]
[1646900427754,1.1494,2589.3,2588.5,0.07734062]
[1646900428155,2.35704926,2589.3,2588.6,11.79]
[1646900428357,2.35704926,2589.3,2588.7,0.07511961]
[1646900429955,1.1494,2589.3,2588.7,11.86511961]
[1646900430155,1.1494,2589.3,2588.7,12.16511961]
[1646900431199,1.1494,2589.3,2588.9,1.32198525]
[1646900431405,13.0353,2589.7,2588.9,1.32198525]
[1646900431406,9.13658,2589.9,2589.0,154.0]
[1646900431609,8.23235,2590.2,2589.4,11.79]
[1646900431610,6.2993,2590.2,2589.4,11.79]
[1646900431905,0.04343,2590.3,2589.6,11.79]
[1646900432105,0.3868,2590.4,2590.0,11.79]
[1646900432306,0.3868,2590.4,2590.1,0.08853626]
[1646900432506,0.3868,2590.4,2590.2,12.69416125]
[1646900432705,0.3868,2590.4,2590.2,12.99416125]
[1646900432907,0.3868,2590.4,2590.3,7.7211]
[1646900434106,0.3868,2590.4,2590.3,12.7027104]
[1646900434308,0.09207173,2591.1,2590.4,204.6132]
[1646900434559,0.01353874,2590.9,2590.5,5.5386104]
[1646900434955,0.01353874,2590.9,2590.5,0.557]
[1646900435158,0.01353874,2590.9,2590.4,0.37995121]
[1646900435555,0.96615,2591.0,2590.4,0.07995121]
[1646900435754,0.00227926,2590.8,2590.4,0.07995121]
[1646900436558,1.08537362,2591.1,2590.4,0.07995121]
[1646900436759,0.96604,2591.3,2590.4,0.07995121]
[1646900436956,0.00227926,2590.7,2590.4,0.07995121]
[1646900437560,0.00227926,2590.7,2590.4,0.14910727]
[1646900437761,0.00227926,2590.7,2590.6,13.05795561]
[1646900437960,0.00227926,2590.7,2590.5,7.7205]
[1646900438162,0.96611,2591.0,2590.5,7.7927944]
[1646900438396,0.00227926,2590.7,2590.5,8.0927944]
[1646900439097,0.0291656,2591.4,2590.7,62.79]
[1646900439296,0.0291656,2591.4,2590.7,12.347]
[1646900439494,0.01294918,2591.1,2590.7,12.347]
[1646900439695,0.01294918,2591.1,2590.8,8.0196]
[1646900439895,0.01294918,2591.1,2590.8,8.5766]
[1646900440297,0.01294918,2591.1,2590.8,9.49821723]
[1646900440600,0.00212806,2591.1,2590.8,9.49821723]
[1646900440896,0.0291656,2591.4,2590.9,120.0]
[1646900441097,0.0291656,2591.4,2590.9,120.557]
[1646900441299,0.89299635,2592.0,2591.2,0.94278206]
[1646900441498,0.96582,2591.8,2591.0,34.3]
[1646900441701,0.96582,2591.8,2591.1,4.96062286]
[1646900441901,0.96582,2591.8,2591.0,34.3]
[1646900442967,0.00227378,2591.6,2591.0,34.3]
[1646900443164,0.00227378,2591.6,2591.0,46.09]
[1646900443367,0.00227378,2591.6,2591.1,0.557]
[1646900443768,0.00227378,2591.6,2591.0,0.3]
[1646900443965,1.93186,2591.8,2590.8,8.2124]
[1646900444170,1.9251701,2591.8,2590.8,8.2124]
[1646900444569,1.9251701,2591.8,2590.9,1.01043766]
[1646900444570,0.00339205,2591.6,2590.9,1.01043766]
[1646900444767,0.96931205,2591.6,2591.0,12.09]
[1646900444968,0.00339205,2591.6,2591.0,12.647]
[1646900445167,11.51569205,2592.1,2591.1,154.0]
[1646900445367,0.0453515,2591.7,2591.1,154.0]
[1646900445667,0.00339201,2591.6,2591.2,4.96062286]
[1646900445900,0.00339201,2591.6,2591.1,154.0]
[1646900446500,1.0112315,2591.7,2591.1,154.0]
[1646900446702,1.0112315,2591.7,2591.2,4.96062286]
[1646900446900,1.0112315,2591.7,2591.3,11.79]
[1646900446901,0.0453515,2591.7,2591.3,11.79]
[1646900447102,0.0453515,2591.7,2591.2,0.07768806]
[1646900447303,0.0453515,2591.7,2591.2,0.37768806]
[1646900447705,0.0453515,2591.7,2591.3,13.25822962]
[1646900447908,0.04761885,2591.7,2591.3,1.46822962]
[1646900448707,0.0453515,2591.7,2591.3,0.3]
[1646900448908,0.0453515,2591.7,2591.1,0.3]
[1646900449110,0.04874355,2591.7,2590.9,0.1928]
[1646900449312,0.04874355,2591.7,2590.8,8.02299322]
[1646900449749,1.03335768,2591.4,2590.8,8.02299322]
[1646900449951,1.03335768,2591.4,2590.8,8.0196]
[1646900450353,1.03335768,2591.4,2590.8,8.02286614]
[1646900450551,0.0917906,2591.6,2590.8,8.02286614]
[1646900451152,0.0917906,2591.6,2590.9,0.1928]
[1646900451351,0.0917906,2591.6,2590.8,8.0196]
[1646900451553,0.0917906,2591.6,2590.8,8.0228661]
[1646900451855,1.05372669,2591.6,2590.8,8.0228661]
[1646900452053,1.04331104,2591.2,2590.8,8.0228661]
[1646900452455,1.04331104,2591.2,2590.8,7.7196]
[1646900452661,2.00937104,2591.2,2590.8,7.7196]
[1646900452860,2.00937104,2591.2,2590.8,7.7228661]
[1646900453699,2.00937104,2591.2,2590.8,7.7196]
[1646900453901,2.00937104,2591.2,2590.8,7.72299028]
[1646900454799,2.00937104,2591.2,2590.8,7.7196]
[1646900455001,2.00937104,2591.2,2590.8,7.72299028]
[1646900455401,0.96606,2591.2,2590.8,7.72299028]
[1646900455604,1.03521332,2591.2,2590.8,7.72299028]
[1646900455801,0.03521332,2591.2,2590.8,7.72299028]
[1646900456003,0.03521332,2591.2,2590.8,7.7196]
[1646900456405,0.03521332,2591.2,2590.8,7.72299028]
[1646900457253,0.03521332,2591.2,2590.8,8.0196]
[1646900457452,0.03521332,2591.2,2590.8,8.02298997]
[1646900458552,0.03521332,2591.2,2590.8,8.0196]
[1646900459558,0.0418592,2591.3,2590.8,8.0196]
[1646900461102,0.0418592,2591.3,2590.8,8.02299651]
[1646900461305,0.04636269,2591.6,2590.8,8.02299651]
[1646900461502,0.04636269,2591.6,2591.2,1.08159399]
[1646900461708,0.04636269,2591.6,2591.2,1.38159399]
[1646900461907,0.00339535,2591.7,2591.2,1.38159399]
[1646900462109,18.44141205,2592.1,2591.2,1.38159399]
[1646900462306,9.29469205,2592.1,2591.2,1.38159399]
[1646900462507,0.00339565,2591.7,2591.2,1.38159399]
[1646900463307,10.29469205,2592.1,2591.2,13.16488709]
[1646900463513,10.29469205,2592.1,2591.3,16.73516688]
[1646900463514,0.00226878,2591.7,2591.3,16.73516688]
[1646900463709,9.29469205,2592.1,2591.7,50.99773122]
[1646900463907,1.23054505,2592.3,2591.4,165.86403249]
[1646900464107,1.18739505,2592.3,2591.5,4.94516688]
[1646900464305,1.18739505,2592.3,2591.5,16.73516688]
[1646900464550,1.17832202,2592.3,2591.5,16.73516688]
[1646900464856,1.17832202,2592.3,2591.9,1.17526891]
[1646900465049,0.01172202,2592.3,2591.9,1.17526891]
[1646900465250,0.97735202,2592.3,2591.5,0.3]
[1646900465451,0.97735202,2592.3,2591.3,0.0871085]
[1646900465654,0.97735202,2592.3,2591.4,0.2818396]
[1646900466253,2.03262393,2592.3,2591.4,13.15519755]
[1646900466452,2.03262393,2592.3,2591.5,0.08080371]
[1646900466655,0.97735202,2592.3,2591.5,0.08080371]
[1646900467254,0.00339966,2592.0,2591.5,0.08080371]
[1646900468157,0.04189484,2592.0,2591.4,0.1928]
[1646900468401,0.00339973,2591.9,2591.4,0.4928]
[1646900468600,0.00339973,2591.9,2591.1,0.86040074]
[1646900469000,0.04598988,2591.9,2591.2,7.7184]
[1646900469401,1.00844015,2591.9,2591.2,7.7184]
[1646900469605,0.00339958,2591.8,2591.2,7.80818156]
[1646900469800,0.00339958,2591.8,2591.3,1.06025664]
[1646900470004,0.00339958,2591.8,2591.2,7.80818156]
[1646900470604,0.96585,2591.9,2591.2,7.80818156]
[1646900470901,0.00329758,2591.8,2591.2,7.80818156]
[1646900471105,0.9659,2591.6,2591.2,7.7184]